bitfinex-derivatives/quotes_SOLF0:USTF0_20250623
["timestamp","ask_amount","ask_price","bid_price","bid_amount"]
[1750715018961,13.62239499,140.9,140.82,47.04712256]
[1750715019144,5.66871517,140.89,140.87,7.0947]
[1750715019347,9.76657657,140.9,140.87,7.0947]
[1750715019551,5.66903724,140.89,140.87,7.0947]
[1750715019743,7.0938,140.9,140.88,7.0944]
[1750715019939,12.03182256,140.91,140.88,7.0944]
[1750715020139,5.66876049,140.9,140.84,4.93852256]
[1750715020445,12.03182256,140.91,140.85,2.3169]
[1750715020652,5.6687525,140.9,140.85,2.3169]
[1750715020846,12.03182256,140.91,140.85,2.3169]
[1750715021143,5.66872673,140.9,140.85,2.3169]
[1750715021349,12.03182256,140.91,140.88,7.094]
[1750715021547,5.66877228,140.9,140.88,7.094]
[1750715021746,12.03182256,140.91,140.88,7.094]
[1750715021943,5.66877228,140.9,140.88,7.094]
[1750715022146,12.03182256,140.91,140.89,7.094]
[1750715022753,4.93852256,140.91,140.9,7.0935]
[1750715023050,10.60735361,140.91,140.85,2.3169]
[1750715023350,5.66883105,140.9,140.89,7.0937]
[1750715023746,37.34,140.92,140.9,7.0931]
[1750715024057,5.66890695,140.91,140.9,7.0931]
[1750715027157,657.4722,140.93,140.91,7.0928]
[1750715027357,5.66902294,140.92,140.91,7.0928]
[1750715028757,650.38,140.93,140.92,7.0925]
[1750715028956,43.02216022,140.93,140.92,7.0925]
[1750715030259,50.11416022,140.93,140.91,7.0929]
[1750715030456,44.432,140.93,140.91,7.0929]
[1750715030750,37.34,140.93,140.86,42.27852256]
[1750715030953,12.77488426,140.92,140.89,7.0936]
[1750715031156,7.0928,140.92,140.89,7.0936]
[1750715031662,7.0931,140.91,140.89,7.0936]
[1750715033061,7.0928,140.92,140.89,7.0936]
[1750715033359,37.34,140.93,140.88,7.0942]
[1750715033563,11.01044348,140.92,140.88,7.0942]
[1750715033757,37.34,140.93,140.86,42.27852256]
[1750715033758,37.34,140.93,140.91,7.0929]
[1750715033955,5.68368735,140.92,140.91,7.0929]
[1750715034849,5.68368735,140.92,140.9,7.0931]
[1750715035159,37.34,140.93,140.9,7.0931]
[1750715035347,12.77636949,140.92,140.9,7.0931]
[1750715035567,7.0927,140.92,140.9,7.0931]
[1750715037660,37.34,140.93,140.86,37.34]
[1750715037857,5.67806551,140.92,140.87,4.93852256]
[1750715038161,37.34,140.93,140.87,4.93852256]
[1750715038463,5.67779542,140.92,140.91,7.0926]
[1750715039461,37.34,140.93,140.92,7.0925]
[1750715039666,43.01720127,140.93,140.92,7.0925]
[1750715040768,43.01720127,140.93,140.87,7.26732256]
[1750715040769,51.01174684,140.93,140.87,7.26732256]
[1750715041060,5.67720127,140.92,140.87,7.26732256]
[1750715041363,7.0927,140.92,140.9,7.0932]
[1750715041863,37.34,140.93,140.87,4.93852256]
[1750715042267,7.0928,140.92,140.87,4.93852256]
[1750715042462,37.34,140.93,140.87,4.93852256]
[1750715042761,37.34,140.93,140.92,7.0925]
[1750715043765,15.08372833,140.96,140.89,4.93852256]
[1750715043766,7.99302833,140.95,140.93,7.0917]
[1750715044064,5.68332572,140.94,140.93,7.0917]
[1750715044860,5.68262916,140.94,140.93,7.0917]
[1750715045551,44.3507,140.96,140.93,7.0917]
[1750715045857,12.77338217,140.95,140.93,7.0917]
[1750715046055,7.0913,140.95,140.93,7.0917]
[1750715047866,37.26,140.97,140.91,4.93852256]
[1750715048266,44.3502,140.97,140.94,7.091]
[1750715048662,44.3502,140.97,140.92,4.8557]
[1750715048965,37.26,140.97,140.92,9.79422256]
[1750715049762,7.0892,140.99,140.97,7.0899]
[1750715049965,5.67990111,140.98,140.97,7.0899]
[1750715050764,12.40889984,140.99,140.97,7.0899]
[1750715050965,5.67927675,140.98,140.97,7.0899]
[1750715051257,12.40889984,140.99,140.97,7.0899]
[1750715051458,9.76289144,140.99,140.97,7.0899]
[1750715051656,7.0892,140.99,140.97,7.0899]
[1750715053260,657.2887,141.0,140.94,4.93852256]
[1750715053464,5.68033914,140.99,140.94,4.93852256]
[1750715053768,657.2887,141.0,140.96,4.93852256]
[1750715053769,37.26,141.0,140.96,4.93852256]
[1750715054858,37.26,141.0,140.99,7.0889]
[1750715055064,7.0876,141.02,140.99,7.0889]
[1750715055273,5.6762442,141.01,140.99,7.0889]
[1750715055568,12.39368791,141.02,141.0,7.0884]
[1750715055770,7.0876,141.02,141.0,7.0884]
[1750715056068,7.0876,141.02,140.99,7.0887]
[1750715057768,44.3471,141.03,140.98,4.93852256]
[1750715058260,37.26,141.03,141.01,7.0876]
[1750715059468,37.26,141.03,141.02,7.0874]
[1750715063171,44.3472,141.03,140.97,9.67632256]
[1750715063366,37.26,141.03,140.97,9.67632256]
[1750715063762,44.3472,141.03,141.0,7.0881]
[1750715063973,44.3472,141.03,140.97,9.67632256]
[1750715064372,44.3472,141.03,141.01,7.0877]
[1750715064573,37.26,141.03,141.01,7.0877]
[1750715064970,37.26,141.03,141.02,7.0874]
[1750715065576,44.3469,141.03,141.01,7.0876]
[1750715066077,7.088,141.01,140.99,7.0886]
[1750715066274,4.93852256,141.02,140.97,4.7378]
[1750715067070,7.0888,141.0,140.97,7.0897]
[1750715067774,4.93852256,141.02,140.97,7.0898]
[1750715067974,10.63601593,141.02,140.94,37.26]
[1750715068175,10.63601593,141.02,140.93,11.86402256]
[1750715068573,5.69749337,141.02,140.93,11.86402256]
[1750715068875,7.0882,141.01,140.95,4.93852256]
[1750715069780,7.0882,141.01,140.98,7.0891]
[1750715070673,7.0882,141.01,140.99,7.0889]
[1750715072570,37.26,141.03,140.93,6.9255]
[1750715072802,37.26,141.03,140.96,4.93852256]
[1750715073376,44.3474,141.03,140.99,7.0886]
[1750715073578,619.31753943,141.07,140.96,4.93852256]
[1750715073780,4.93852256,141.05,140.96,4.93852256]
[1750715074081,7.0867,141.04,141.01,7.0875]
[1750715074384,12.78673965,141.04,141.01,7.0875]
[1750715075688,7.087,141.03,141.0,7.0882]
[1750715077583,7.0867,141.04,141.01,7.0879]
[1750715078098,7.0869,141.04,141.01,7.0879]
[1750715078288,4.93852256,141.05,141.01,7.0879]
[1750715078494,5.70674677,141.04,141.01,7.0879]
[1750715078685,7.0872,141.03,141.01,7.0879]
[1750715078885,42.11852256,141.06,141.02,7.0873]
[1750715079190,7.0866,141.04,141.02,7.0873]
[1750715079388,5.70792752,141.04,140.99,2.2349]
[1750715079783,7.0867,141.04,140.99,2.2349]
[1750715079990,7.0867,141.04,140.99,4.4761]
[1750715080693,7.0867,141.04,141.01,7.0876]
[1750715080992,7.0867,141.04,140.99,4.4761]
[1750715081694,12.79684655,141.04,141.02,7.0873]
[1750715081990,7.0867,141.04,141.02,7.0873]
[1750715082595,37.18,141.06,141.03,7.0866]
[1750715082793,5.71165114,141.05,141.03,7.0866]
[1750715082992,42.4827764,141.06,141.03,7.0866]
[1750715083195,5.71163534,141.05,141.03,7.0866]
[1750715083494,44.2657,141.06,141.04,7.0863]
[1750715083690,5.71320666,141.05,141.04,7.0863]
[1750715083898,5.71256767,141.06,141.05,7.0855]
[1750715084695,649.86,141.07,141.05,7.0855]
[1750715085488,649.86,141.07,141.02,4.93852256]
[1750715086295,649.86,141.07,141.05,7.0856]
[1750715086897,656.945,141.07,141.05,7.0856]
[1750715088202,649.86,141.07,141.05,7.0856]
[1750715088700,37.16,141.07,141.06,7.0854]
[1750715088896,7.0842,141.09,141.06,7.0854]
[1750715089096,5.72243384,141.08,141.06,7.0854]
[1750715089395,9.76166517,141.09,141.06,7.0854]
[1750715089597,5.72353853,141.08,141.06,7.0854]
[1750715089788,5.72353853,141.07,141.06,7.0854]
[1750715089993,44.2435,141.1,141.07,7.0844]
[1750715090193,11.05019452,141.09,141.07,7.0844]
[1750715090394,5.72350279,141.08,141.07,7.0844]
[1750715093103,6.61753943,141.12,141.03,37.16]
[1750715093104,6.61753943,141.14,141.06,4.93852256]
[1750715093298,13.72598701,141.13,141.08,4.93852256]
[1750715093597,5.72362569,141.12,141.11,7.0828]
[1750715093904,44.2412,141.15,141.08,4.93852256]
[1750715094093,5.74761805,141.14,141.12,7.082]
[1750715094295,6.61753943,141.17,141.12,4.93852256]
[1750715094500,5.74740614,141.16,141.12,4.93852256]
[1750715094700,44.2398,141.18,141.12,4.93852256]
[1750715095000,44.2398,141.18,141.15,7.0806]
[1750715095201,49.55741931,141.18,141.15,7.0806]
[1750715095396,44.2398,141.18,141.15,7.0806]
[1750715095796,37.16,141.18,141.12,11.79802256]
[1750715096195,37.16,141.18,141.05,14.1713]
[1750715096395,4.93852256,141.17,141.09,4.93852256]
[1750715096700,10.24264532,141.17,141.07,4.93852256]
[1750715097302,10.24468793,141.17,141.07,4.93852256]
[1750715097496,7.0822,141.13,141.1,7.0831]
[1750715098700,7.0812,141.15,141.09,4.93852256]
[1750715099003,7.0812,141.15,141.09,41.99852256]
[1750715099395,7.0812,141.15,141.12,7.0821]
[1750715099707,37.16,141.18,141.09,41.99852256]
[1750715100090,7.0803,141.17,141.14,7.0812]
[1750715101805,4.93852256,141.17,141.09,37.06]
[1750715102501,37.16,141.18,141.09,37.06]
[1750715102706,4.93852256,141.17,141.1,4.93852256]
[1750715102898,37.16,141.18,141.1,4.93852256]
[1750715103096,7.0802,141.17,141.1,4.93852256]
[1750715103299,7.0802,141.17,141.11,4.6309]
[1750715103602,44.2395,141.18,141.11,4.6309]
[1750715103800,44.2395,141.18,141.11,6.9554]
[1750715104203,7.0802,141.17,141.14,7.081]
[1750715105200,44.2396,141.18,141.15,7.0809]
[1750715106102,7.0799,141.17,141.14,7.0811]
[1750715107707,7.0799,141.17,141.15,7.0809]
[1750715108703,37.16,141.18,141.15,7.0809]
[1750715108704,44.2397,141.18,141.15,7.0809]
[1750715109702,37.16,141.18,141.16,7.0801]
[1750715110102,37.16,141.18,141.17,7.0799]
[1750715112704,649.32,141.21,141.18,7.0791]
[1750715113516,656.3981,141.21,141.18,7.0791]
[1750715113815,656.3981,141.21,141.14,4.93852256]
[1750715113816,41.97852256,141.23,141.14,4.93852256]
[1750715114313,49.05572256,141.23,141.14,4.93852256]
[1750715114814,7.0775,141.22,141.14,4.93852256]
[1750715115212,7.0779,141.21,141.18,7.0791]
[1750715116215,7.0784,141.2,141.18,7.0791]
[1750715116515,37.04,141.23,141.2,7.0784]
[1750715116714,7.0771,141.23,141.2,7.0784]
[1750715116911,5.70411536,141.24,141.17,43.9592]
[1750715117213,7.0766,141.24,141.17,43.9592]
[1750715117608,5.31406518,141.25,141.17,43.9592]
[1750715117815,7.0761,141.25,141.18,4.93852256]
[1750715118621,611.84,141.28,141.18,4.93852256]
[1750715118802,653.81852256,141.28,141.2,4.93852256]
[1750715119304,7.0752,141.27,141.24,7.076]
[1750715120616,7.075,141.27,141.24,7.076]
[1750715120812,4.93852256,141.26,141.18,4.93852256]
[1750715121411,4.93852256,141.24,141.17,43.9592]
[1750715121617,41.97852256,141.24,141.17,43.9592]
[1750715121811,41.97852256,141.24,141.18,7.079]
[1750715122115,7.0777,141.22,141.17,43.9592]
[1750715122320,4.93852256,141.22,141.18,7.0791]
[1750715122514,4.93852256,141.22,141.17,4.5304]
[1750715122715,7.0788,141.2,141.17,4.5304]
[1750715123014,4.93852256,141.21,141.14,41.97852256]
[1750715123218,7.0796,141.18,141.14,37.04]
[1750715123517,37.04,141.2,141.15,7.0806]
[1750715123817,4.93852256,141.19,141.15,7.0806]
[1750715124815,7.08,141.17,141.15,7.0806]
[1750715126417,7.08,141.17,141.12,4.5722]
[1750715126917,7.08,141.17,141.14,7.0811]
[1750715128416,4.93852256,141.19,141.14,7.0811]
[1750715128417,7.0804,141.16,141.14,7.0811]
[1750715128805,10.28148408,141.19,141.14,7.0811]
[1750715129010,7.0801,141.17,141.14,7.0811]
[1750715129618,7.0801,141.17,141.12,4.5722]
[1750715129807,7.0801,141.17,141.15,7.0808]
[1750715130217,7.0796,141.18,141.15,7.0808]
[1750715130435,4.93852256,141.19,141.16,7.0803]
[1750715130610,37.04,141.2,141.16,7.0803]
[1750715130816,7.0794,141.18,141.16,7.0803]
[1750715132013,7.0791,141.19,141.16,7.0803]
[1750715132610,44.1187,141.2,141.12,9.51072256]
[1750715132812,37.04,141.2,141.14,4.93852256]
[1750715133622,42.32877974,141.23,141.16,4.93852256]
[1750715133921,36.98,141.23,141.16,4.93852256]
[1750715134111,36.98,141.23,141.17,2.253]
[1750715134312,36.98,141.23,141.21,7.0776]
[1750715134716,36.98,141.23,141.17,2.253]
[1750715135119,36.98,141.23,141.18,2.35]
[1750715135314,36.98,141.23,141.22,7.0774]
[1750715135523,42.73968545,141.23,141.22,7.0774]
[1750715136739,48.08799226,141.23,141.22,7.0774]
[1750715136918,11.10799226,141.23,141.22,7.0774]
[1750715137822,36.98,141.25,141.24,7.0764]
[1750715138022,48.06567899,141.25,141.24,7.0764]
[1750715138314,48.06566838,141.25,141.24,7.0764]
[1750715138826,42.71889185,141.25,141.24,7.0764]
[1750715139123,12.01362256,141.27,141.25,7.0759]
[1750715139327,11.0865722,141.26,141.25,7.0759]
[1750715140025,5.73707448,141.26,141.25,7.0759]
[1750715141023,48.99282256,141.29,141.26,7.0751]
[1750715141229,11.07937602,141.28,141.26,7.0751]
[1750715141429,5.73485231,141.27,141.26,7.0751]
[1750715141726,12.4189237,141.28,141.25,7.0756]
[1750715142025,5.73336284,141.27,141.25,7.0756]
[1750715142218,7.0744,141.28,141.25,7.0756]
[1750715142613,48.99252256,141.29,141.26,7.0753]
[1750715142815,48.99252256,141.29,141.22,4.93852256]
[1750715142816,11.07900211,141.28,141.22,4.93852256]
[1750715143016,36.98,141.29,141.22,4.93852256]
[1750715143226,11.07837947,141.28,141.23,39.4247]
[1750715143419,36.98,141.29,141.27,7.0746]
[1750715143617,5.73148556,141.28,141.27,7.0746]
[1750715143826,5.34140295,141.31,141.29,7.0739]
[1750715144118,6.61753943,141.34,141.29,7.0739]
[1750715144119,11.07268402,141.3,141.29,7.0739]
[1750715144313,5.731364,141.3,141.29,7.0739]
[1750715144517,5.34132002,141.32,141.31,7.0725]
[1750715144719,11.07034771,141.32,141.31,7.0725]
[1750715145113,5.72902769,141.32,141.31,7.0725]
[1750715145519,5.34527582,141.34,141.33,7.0719]
[1750715145715,5.77037121,141.34,141.33,7.0719]
[1750715147031,5.36491476,141.36,141.33,7.0719]
[1750715147233,5.76697667,141.35,141.34,7.0714]
[1750715147424,7.0703,141.37,141.34,7.0714]
[1750715147623,12.43378785,141.38,141.32,4.93852256]
[1750715147825,7.0694,141.38,141.35,7.0706]
[1750715148722,7.0694,141.38,141.32,4.93852256]
[1750715148723,36.96,141.4,141.32,4.93852256]
[1750715149028,5.75606761,141.39,141.32,4.93852256]
[1750715149257,7.0691,141.39,141.35,7.0704]
[1750715149628,12.82089135,141.38,141.35,7.0704]
[1750715149824,7.0697,141.38,141.35,7.0704]
[1750715150027,4.93852256,141.39,141.32,4.93852256]
[1750715150227,5.74786842,141.38,141.32,4.93852256]
[1750715150532,5.74786842,141.38,141.31,36.96]
[1750715150724,5.74786842,141.38,141.33,7.0716]
[1750715150921,7.0707,141.36,141.33,7.0716]
[1750715152233,7.0701,141.37,141.33,7.0716]
[1750715153034,7.0701,141.37,141.34,7.0714]
[1750715153235,7.0697,141.38,141.34,7.0714]
[1750715153534,7.0697,141.38,141.35,7.0708]
[1750715154035,7.07,141.37,141.32,4.93852256]
[1750715154422,7.07,141.37,141.34,7.0711]
[1750715154646,7.0695,141.38,141.32,4.93852256]
[1750715155031,41.89852256,141.4,141.32,4.93852256]
[1750715155830,7.0702,141.37,141.34,7.0711]
[1750715157233,7.0704,141.36,141.33,7.0717]
[1750715158646,36.96,141.4,141.31,41.89852256]
[1750715158932,36.96,141.4,141.33,4.93852256]
[1750715159133,7.0692,141.39,141.35,7.0708]
[1750715159332,36.96,141.4,141.35,7.0708]
[1750715160527,7.0696,141.38,141.35,7.0708]
[1750715162235,12.00762256,141.39,141.36,7.0703]
[1750715162434,7.0691,141.39,141.36,7.0703]
[1750715162637,7.0691,141.39,141.31,41.89852256]
[1750715163739,7.0691,141.39,141.34,7.0711]
[1750715163943,7.0694,141.38,141.34,7.0711]
[1750715165730,7.07,141.37,141.34,7.0711]
[1750715166144,36.96,141.4,141.34,7.0711]
[1750715166736,36.96,141.4,141.35,7.0707]
[1750715167246,7.0697,141.38,141.35,7.0707]
[1750715173053,7.0691,141.39,141.35,7.0707]
[1750715173254,41.89852256,141.4,141.35,7.0707]
[1750715173454,7.0691,141.39,141.35,7.0707]
[1750715173753,36.96,141.4,141.35,7.0707]
[1750715174646,36.96,141.4,141.32,4.93852256]
[1750715175153,44.0287,141.4,141.36,7.07]
[1750715175364,5.46148899,141.39,141.36,7.07]
[1750715175553,44.0287,141.4,141.36,7.07]
[1750715175756,5.46123922,141.39,141.36,7.07]
[1750715175952,44.0287,141.4,141.36,7.07]
[1750715176151,5.46115098,141.39,141.37,7.0699]
[1750715176363,36.96,141.4,141.37,7.0699]
[1750715176555,5.46132734,141.39,141.37,7.0699]
[1750715176851,44.0288,141.4,141.36,7.0701]
[1750715177053,5.46125146,141.39,141.36,7.0701]
[1750715177248,7.0689,141.39,141.36,7.0701]
[1750715177553,5.47164991,141.38,141.36,7.0701]
[1750715177743,7.0689,141.39,141.36,7.0701]
[1750715177944,5.47237987,141.38,141.36,7.0701]
[1750715178147,7.0689,141.39,141.36,7.0701]
[1750715178350,5.47251717,141.38,141.36,7.0701]
[1750715178551,7.0689,141.39,141.36,7.0701]
[1750715178757,5.47253086,141.38,141.37,7.0699]
[1750715180857,11.28641261,141.38,141.37,7.0699]
[1750715181459,5.81388175,141.38,141.37,7.0699]
[1750715181659,11.12357655,141.38,141.37,7.0699]
[1750715182456,11.1243619,141.38,141.37,7.0699]
[1750715183261,11.1243619,141.38,141.35,43.877]
[1750715183262,6.53749423,141.42,141.4,7.0684]
[1750715183457,11.14482,141.41,141.4,7.0684]
[1750715183856,50.6866585,141.46,141.42,7.0672]
[1750715183857,6.53749423,141.45,141.42,7.0672]
[1750715184159,11.14324845,141.44,141.42,7.0672]
[1750715184353,11.14324845,141.43,141.42,7.0672]
[1750715184557,5.82435958,141.43,141.42,7.0672]
[1750715185658,11.13641618,141.43,141.42,7.0672]
[1750715186155,5.82435958,141.43,141.42,7.0672]
[1750715187563,43.45749423,141.46,141.38,4.93852256]
[1750715187765,11.13713418,141.45,141.4,4.93852256]
[1750715187964,5.82954627,141.44,141.41,4.5721]
[1750715188264,13.60259423,141.47,141.42,4.93852256]
[1750715188462,13.88332801,141.46,141.42,4.93852256]
[1750715188659,11.17400256,141.45,141.44,7.0664]
[1750715188965,5.85810383,141.45,141.44,7.0664]
[1750715190158,2.71383837,141.48,141.42,4.93852256]
[1750715190355,2.71361391,141.5,141.44,4.93852256]
[1750715190556,4.93852256,141.47,141.44,7.0661]
[1750715190873,5.85495309,141.46,141.41,4.5721]
[1750715191077,47.65347565,141.45,141.41,4.5721]
[1750715191266,7.0667,141.44,141.37,41.79852256]
[1750715191470,4.93852256,141.41,141.35,2.2595]
[1750715191665,4.93852256,141.41,141.27,610.62]
[1750715191666,5.85561548,141.4,141.32,2.2916]
[1750715191971,16.09840563,141.39,141.32,2.2916]
[1750715192163,5.85561548,141.38,141.34,7.0711]
[1750715192361,42.71561548,141.37,141.34,7.0711]
[1750715192667,5.85925802,141.36,141.34,7.0711]
[1750715192865,36.86,141.37,141.34,7.0711]
[1750715193066,5.859305,141.36,141.34,7.0711]
[1750715193369,36.86,141.37,141.34,7.0711]
[1750715193666,36.86,141.37,141.32,2.2916]
[1750715193667,36.86,141.37,141.35,7.0709]
[1750715193871,36.86,141.37,141.32,2.2916]
[1750715193872,5.85940063,141.36,141.32,2.2916]
[1750715194064,36.86,141.37,141.32,2.2916]
[1750715194263,5.85942356,141.36,141.32,2.2916]
[1750715194469,36.86,141.37,141.34,7.0711]
[1750715194673,5.85943516,141.36,141.34,7.0711]
[1750715194871,36.86,141.37,141.32,2.2916]
[1750715195068,5.85942007,141.36,141.32,2.2916]
[1750715195271,36.86,141.37,141.32,2.2916]
[1750715196179,36.86,141.37,141.35,7.0706]
[1750715196480,36.86,141.37,141.32,2.2916]
[1750715196667,36.86,141.37,141.35,7.0704]
[1750715197472,36.86,141.37,141.32,2.2916]
[1750715197972,36.86,141.37,141.36,7.0704]
[1750715198163,42.71954894,141.37,141.36,7.0704]
[1750715198359,36.86,141.37,141.36,7.0704]
[1750715198564,6.53749423,141.41,141.32,2.2916]
[1750715198778,42.71985243,141.4,141.33,4.93852256]
[1750715198973,42.71985243,141.39,141.33,4.93852256]
[1750715199174,36.86,141.39,141.33,4.93852256]
[1750715199772,36.86,141.39,141.38,7.0694]
[1750715200068,42.72005248,141.39,141.38,7.0694]
[1750715201175,36.86,141.39,141.38,7.0694]
[1750715203676,39.55746381,141.42,141.35,4.93852256]
[1750715203874,5.82929687,141.41,141.35,4.93852256]
[1750715204180,5.82929687,141.4,141.39,7.0684]
[1750715204688,36.86,141.42,141.35,4.93852256]
[1750715204981,5.82917853,141.41,141.4,7.0681]
[1750715205485,36.86,141.42,141.4,7.0681]
[1750715205671,36.86,141.42,141.41,7.0679]
[1750715205871,42.68872361,141.42,141.41,7.0679]
[1750715206174,42.68872361,141.42,141.36,2.2324]
[1750715206377,36.86,141.42,141.36,2.2324]
[1750715206578,36.86,141.43,141.36,2.2324]
[1750715206780,5.86192496,141.42,141.36,2.2324]
[1750715206975,36.86,141.43,141.39,7.0686]
[1750715207172,12.92946766,141.42,141.39,7.0686]
[1750715207369,7.0674,141.42,141.39,7.0686]
[1750715207581,7.0674,141.42,141.36,2.2324]
[1750715207780,43.9271,141.43,141.36,2.2324]
[1750715207982,5.87569512,141.42,141.36,2.2324]
[1750715208183,43.9271,141.43,141.4,7.0683]
[1750715208375,5.87582701,141.42,141.4,7.0683]
[1750715208678,36.86,141.43,141.36,2.2324]
[1750715208879,5.8757824,141.42,141.36,2.2324]
[1750715209079,36.86,141.43,141.36,2.2324]
[1750715209283,5.87548072,141.42,141.41,7.0679]
[1750715209679,36.86,141.43,141.41,7.0679]
[1750715212795,7.0667,141.44,141.41,7.0679]
[1750715212978,5.88410609,141.43,141.41,7.0679]
[1750715213184,7.0667,141.44,141.41,7.0679]
[1750715213491,5.88410609,141.43,141.41,7.0679]
[1750715213789,36.86,141.45,141.39,4.93852256]
[1750715213976,5.88412653,141.44,141.39,4.93852256]
[1750715214286,5.88412653,141.43,141.42,7.0671]
[1750715214785,36.86,141.45,141.43,7.0665]
[1750715214991,5.88342682,141.44,141.43,7.0665]
[1750715215890,5.88342682,141.44,141.39,4.93852256]
[1750715216085,36.86,141.45,141.39,4.93852256]
[1750715216386,36.86,141.45,141.42,7.0671]
[1750715216587,36.86,141.45,141.39,4.93852256]
[1750715216889,36.86,141.45,141.41,7.0676]
[1750715217097,7.0669,141.43,141.41,7.0676]
[1750715217491,36.86,141.45,141.41,7.0676]
[1750715217677,36.86,141.45,141.38,44.19932256]
[1750715218386,36.86,141.45,141.43,7.0667]
[1750715218587,36.86,141.45,141.38,2.4008]
[1750715218886,10.82971993,141.44,141.36,7.17092256]
[1750715219087,4.93852256,141.42,141.36,2.2324]
[1750715219286,7.0693,141.39,141.36,9.3025]
[1750715219491,36.86,141.41,141.34,2.4025]
[1750715219690,5.89371482,141.4,141.34,2.4025]
[1750715219891,7.0693,141.39,141.35,7.0706]
[1750715220796,7.0693,141.39,141.36,7.0703]
[1750715222398,4.93852256,141.4,141.32,4.93852256]
[1750715222590,4.93852256,141.38,141.3,4.562]
[1750715222786,4.93852256,141.36,141.28,2.3101]
[1750715222993,5.87317672,141.35,141.28,2.3101]
[1750715223201,43.37749423,141.37,141.26,2.283]
[1750715223202,10.81169928,141.34,141.26,2.283]
[1750715223389,7.0731,141.31,141.26,2.283]
[1750715223690,36.84,141.33,141.26,2.283]
[1750715224886,36.84,141.33,141.27,4.93852256]
[1750715225092,36.84,141.33,141.29,7.0734]
[1750715225792,43.9122,141.33,141.3,7.0732]
[1750715225989,36.84,141.33,141.24,39.2026]
[1750715226301,7.0727,141.32,141.28,7.074]
[1750715226789,36.84,141.33,141.28,7.074]
[1750715226995,7.073,141.31,141.28,7.074]
[1750715227588,36.84,141.33,141.25,4.93852256]
[1750715227789,36.84,141.33,141.27,4.93852256]
[1750715228698,36.86,141.37,141.31,4.93852256]
[1750715228898,7.0705,141.36,141.31,4.93852256]
[1750715229425,43.9301,141.37,141.34,7.0714]
[1750715230698,43.9301,141.37,141.34,7.0711]
[1750715232590,43.9301,141.37,141.35,7.0708]
[1750715232591,36.86,141.37,141.35,7.0708]
[1750715232793,36.86,141.37,141.31,4.93852256]
[1750715233594,6.53749423,141.43,141.33,4.93852256]
[1750715233797,36.86,141.4,141.33,4.93852256]
[1750715234000,36.86,141.4,141.34,2.2122]
[1750715234197,36.86,141.4,141.38,7.069]
[1750715234400,6.53749423,141.43,141.35,4.93852256]
[1750715234636,42.72012685,141.42,141.36,2.2461]
[1750715234804,36.86,141.42,141.37,4.93852256]
[1750715235803,36.86,141.42,141.41,7.0679]
[1750715245710,7.0665,141.44,141.41,7.0679]
[1750715247717,7.0665,141.44,141.38,4.93852256]
[1750715248416,7.0665,141.44,141.41,7.0676]
[1750715248808,7.0665,141.44,141.38,4.93852256]
[1750715249817,7.0665,141.44,141.42,7.0673]
[1750715250417,7.0665,141.44,141.38,4.93852256]
[1750715250614,7.0665,141.44,141.42,7.0673]
[1750715251809,7.0665,141.44,141.41,7.0676]
[1750715252011,7.0665,141.44,141.38,4.93852256]
[1750715252520,7.0665,141.44,141.41,7.0675]
[1750715252726,7.0665,141.44,141.38,4.93852256]
[1750715252921,7.0665,141.44,141.41,7.0674]
[1750715253919,7.0665,141.44,141.42,7.0673]
[1750715258924,7.0664,141.44,141.41,7.0675]
[1750715259122,7.0664,141.44,141.39,4.93852256]
[1750715259325,36.82,141.48,141.37,36.82]
[1750715259526,12.93125012,141.47,141.44,7.0661]
[1750715259727,36.82,141.48,141.41,4.93852256]
[1750715260018,43.8846,141.48,141.45,7.0654]
[1750715260220,43.8846,141.48,141.43,4.93852256]
[1750715260417,43.8846,141.48,141.46,7.0652]